[Event "*** Titled Tuesday Blitz"]
[Site "Chess.com"]
[Date "2020.04.21"]
[Round "8"]
[White "IMTominho"]
[Black "Shant_Sargsyan"]
[Result "0-1"]
[WhiteElo "2805"]
[BlackElo "3004"]
[TimeControl "180+1"]
[EndTime "11:38:45 PDT"]
[Termination "Shant_Sargsyan won by resignation"]

1. d4 {[%clk 0:03:00.9]} 1... Nf6 {[%clk 0:02:59]} 2. c4 {[%clk 0:03:00.6]} 2...
e6 {[%clk 0:02:59]} 3. Nf3 {[%clk 0:03:00.6]} 3... d5 {[%clk 0:02:59.3]} 4. Nc3
{[%clk 0:03:00.4]} 4... Bb4 {[%clk 0:02:59.8]} 5. cxd5 {[%clk 0:02:59.7]} 5...
exd5 {[%clk 0:02:59.9]} 6. Bg5 {[%clk 0:02:59.8]} 6... h6 {[%clk 0:02:59.2]} 7.
Bxf6 {[%clk 0:02:57.8]} 7... Qxf6 {[%clk 0:02:59.1]} 8. Qa4+ {[%clk 0:02:58.7]}
8... Nc6 {[%clk 0:02:59.2]} 9. e3 {[%clk 0:02:58.6]} 9... O-O {[%clk 0:02:58.6]}
10. Rc1 {[%clk 0:02:58.1]} 10... Qg6 {[%clk 0:02:46]} 11. Qd1 {[%clk 0:02:55.6]}
11... Ne7 {[%clk 0:02:38.4]} 12. a3 {[%clk 0:02:52.9]} 12... Bxc3+ {[%clk
0:02:36.1]} 13. Rxc3 {[%clk 0:02:53.8]} 13... c6 {[%clk 0:02:36.5]} 14. h3
{[%clk 0:02:51.6]} 14... a5 {[%clk 0:02:24]} 15. Bd3 {[%clk 0:02:50.8]} 15...
Qf6 {[%clk 0:02:18.3]} 16. O-O {[%clk 0:02:48.8]} 16... Bf5 {[%clk 0:02:17.8]}
17. Ne5 {[%clk 0:02:45.5]} 17... Qe6 {[%clk 0:02:12.1]} 18. Rb3 {[%clk
0:02:36.1]} 18... Ra7 {[%clk 0:02:07.9]} 19. Qf3 {[%clk 0:02:33.2]} 19... f6
{[%clk 0:02:03.3]} 20. Bxf5 {[%clk 0:02:31]} 20... Qxf5 {[%clk 0:02:03]} 21.
Qxf5 {[%clk 0:02:29.1]} 21... Nxf5 {[%clk 0:02:03.8]} 22. Nd7 {[%clk 0:02:29.2]}
22... Rf7 {[%clk 0:01:53.6]} 23. Nc5 {[%clk 0:02:28.2]} 23... Nd6 {[%clk
0:01:52]} 24. a4 {[%clk 0:02:27.6]} 24... h5 {[%clk 0:01:47.8]} 25. Rc1 {[%clk
0:02:25.1]} 25... h4 {[%clk 0:01:44.4]} 26. Kf1 {[%clk 0:02:16.3]} 26... Re7
{[%clk 0:01:39.8]} 27. Nd3 {[%clk 0:02:13.7]} 27... g5 {[%clk 0:01:35.2]} 28.
Rb6 {[%clk 0:02:10.6]} 28... Nc4 {[%clk 0:01:30.3]} 29. Rxc4 {[%clk 0:02:10.6]}
29... dxc4 {[%clk 0:01:30.3]} 30. Nc5 {[%clk 0:02:11.5]} 30... f5 {[%clk
0:01:27.2]} 31. Ke2 {[%clk 0:02:10.7]} 31... g4 {[%clk 0:01:26.1]} 32. b3 {[%clk
0:01:49.9]} 32... c3 {[%clk 0:01:22.1]} 33. b4 {[%clk 0:01:45]} 33... axb4
{[%clk 0:01:12.8]} 34. Rxb4 {[%clk 0:01:44.3]} 34... g3 {[%clk 0:01:10]} 35.
fxg3 {[%clk 0:01:32]} 35... hxg3 {[%clk 0:01:10.9]} 36. Kf3 {[%clk 0:01:31.7]}
36... f4 {[%clk 0:01:01.4]} 37. exf4 {[%clk 0:01:21.8]} 37... b5 {[%clk
0:00:56.9]} 38. axb5 {[%clk 0:01:11.2]} 38... cxb5 {[%clk 0:00:57.8]} 39. Rb3
{[%clk 0:00:56.1]} 39... c2 {[%clk 0:00:54.8]} 40. Nd3 {[%clk 0:00:55.1]} 40...
Rec7 {[%clk 0:00:41]} 41. Kg4 {[%clk 0:00:46.6]} 41... Ra1 {[%clk 0:00:35.5]}
42. Rxb5 {[%clk 0:00:16.9]} 42... Rd1 {[%clk 0:00:34.8]} 0-1

[Event "*** Titled Tuesday Blitz"]
[Site "Chess.com"]
[Date "2020.04.21"]
[Round "8"]
[White "arminmusovic"]
[Black "canhhuan"]
[Result "0-1"]
[WhiteElo "2485"]
[BlackElo "2653"]
[TimeControl "180+1"]
[EndTime "11:38:47 PDT"]
[Termination "canhhuan won by resignation"]

1. a3 {[%clk 0:03:00.9]} 1... g6 {[%clk 0:02:54.3]} 2. Nc3 {[%clk 0:03:01.8]}
2... Bg7 {[%clk 0:02:53.8]} 3. e4 {[%clk 0:03:02.4]} 3... c6 {[%clk 0:02:46.4]}
4. d4 {[%clk 0:03:02]} 4... d5 {[%clk 0:02:45.9]} 5. e5 {[%clk 0:02:58.2]} 5...
f6 {[%clk 0:02:38.8]} 6. exf6 {[%clk 0:02:52.6]} 6... Nxf6 {[%clk 0:02:32]} 7.
Nf3 {[%clk 0:02:50.1]} 7... O-O {[%clk 0:02:27.2]} 8. h3 {[%clk 0:02:50.5]} 8...
c5 {[%clk 0:02:08]} 9. dxc5 {[%clk 0:02:26.5]} 9... Nc6 {[%clk 0:02:06.9]} 10.
Bb5 {[%clk 0:02:26.6]} 10... e5 {[%clk 0:01:33.5]} 11. O-O {[%clk 0:02:25.6]}
11... d4 {[%clk 0:01:08.7]} 12. Bc4+ {[%clk 0:02:00.5]} 12... Kh8 {[%clk
0:01:07.1]} 13. Nb5 {[%clk 0:01:48.8]} 13... Ne8 {[%clk 0:00:50.9]} 14. Ng5
{[%clk 0:01:20.9]} 14... a6 {[%clk 0:00:49.4]} 15. Nd6 {[%clk 0:01:18.5]} 15...
Nxd6 {[%clk 0:00:48.7]} 16. cxd6 {[%clk 0:01:19.4]} 16... Qxd6 {[%clk
0:00:43.2]} 17. Nf7+ {[%clk 0:01:05.3]} 17... Rxf7 {[%clk 0:00:43]} 18. Bxf7
{[%clk 0:01:06.2]} 18... Bf5 {[%clk 0:00:43.3]} 19. b4 {[%clk 0:00:54]} 19...
Rc8 {[%clk 0:00:41.9]} 20. Bb2 {[%clk 0:00:52.7]} 20... e4 {[%clk 0:00:35.8]}
21. Re1 {[%clk 0:00:35.1]} 21... Rf8 {[%clk 0:00:18.4]} 22. Bb3 {[%clk
0:00:34.7]} 22... h5 {[%clk 0:00:17.3]} 23. Qd2 {[%clk 0:00:27.9]} 23... Kh7
{[%clk 0:00:14.5]} 24. Rad1 {[%clk 0:00:26.9]} 24... Qf6 {[%clk 0:00:12.9]} 25.
Qe2 {[%clk 0:00:26.1]} 25... Qg5 {[%clk 0:00:12.1]} 26. Bc1 {[%clk 0:00:23.5]}
26... Qh4 {[%clk 0:00:10.8]} 27. Bd5 {[%clk 0:00:19.6]} 27... d3 {[%clk
0:00:08.8]} 28. cxd3 {[%clk 0:00:18]} 28... Nd4 {[%clk 0:00:08.9]} 29. Qf1
{[%clk 0:00:14.6]} 29... exd3 {[%clk 0:00:08.1]} 30. Rxd3 {[%clk 0:00:13]} 30...
Bxd3 {[%clk 0:00:08]} 31. Qxd3 {[%clk 0:00:13.6]} 31... Qxf2+ {[%clk 0:00:08.5]}
32. Kh2 {[%clk 0:00:12.8]} 32... Qxe1 {[%clk 0:00:09.3]} 33. Be3 {[%clk
0:00:12.3]} 33... Be5+ {[%clk 0:00:09.1]} 0-1

[Event "*** Titled Tuesday Blitz"]
[Site "Chess.com"]
[Date "2020.04.21"]
[Round "8"]
[White "chito89"]
[Black "RoelandPruijssers"]
[Result "0-1"]
[WhiteElo "2747"]
[BlackElo "2635"]
[TimeControl "180+1"]
[EndTime "11:38:48 PDT"]
[Termination "RoelandPruijssers won on time"]

1. d4 {[%clk 0:03:00.9]} 1... f5 {[%clk 0:02:55.8]} 2. c4 {[%clk 0:02:59.9]}
2... Nf6 {[%clk 0:02:53.8]} 3. Nf3 {[%clk 0:03:00.3]} 3... g6 {[%clk 0:02:53.3]}
4. g3 {[%clk 0:03:00]} 4... Bg7 {[%clk 0:02:53.5]} 5. Bg2 {[%clk 0:02:59.3]}
5... O-O {[%clk 0:02:53.1]} 6. O-O {[%clk 0:02:59.6]} 6... d6 {[%clk 0:02:53.5]}
7. Nc3 {[%clk 0:02:56]} 7... Qe8 {[%clk 0:02:53.1]} 8. b3 {[%clk 0:02:47.7]}
8... Na6 {[%clk 0:02:50.3]} 9. Ba3 {[%clk 0:02:45.7]} 9... c6 {[%clk 0:02:49.3]}
10. Qc2 {[%clk 0:02:43.9]} 10... Rb8 {[%clk 0:02:48.6]} 11. e4 {[%clk
0:02:38.4]} 11... fxe4 {[%clk 0:02:41.5]} 12. Nxe4 {[%clk 0:02:38]} 12... Bf5
{[%clk 0:02:41.4]} 13. Nxf6+ {[%clk 0:02:29.6]} 13... Bxf6 {[%clk 0:02:42.3]}
14. Qe2 {[%clk 0:02:29.8]} 14... b5 {[%clk 0:02:41.5]} 15. Rfe1 {[%clk
0:02:16.1]} 15... Qd7 {[%clk 0:02:33.5]} 16. Bb2 {[%clk 0:02:06.5]} 16... Nb4
{[%clk 0:02:27]} 17. Rad1 {[%clk 0:01:55.9]} 17... Nxa2 {[%clk 0:02:17.2]} 18.
d5 {[%clk 0:01:55.6]} 18... Bxb2 {[%clk 0:01:52.4]} 19. Qxb2 {[%clk 0:01:54.4]}
19... Nb4 {[%clk 0:01:46.6]} 20. Nd4 {[%clk 0:01:19.6]} 20... c5 {[%clk
0:01:32.6]} 21. Nc6 {[%clk 0:01:01]} 21... Rbe8 {[%clk 0:01:18.5]} 22. Qe2
{[%clk 0:00:43.5]} 22... e5 {[%clk 0:00:28.9]} 23. Nxb4 {[%clk 0:00:29.1]} 23...
cxb4 {[%clk 0:00:29.8]} 24. cxb5 {[%clk 0:00:28.3]} 24... Rb8 {[%clk 0:00:30.3]}
25. Ra1 {[%clk 0:00:22.8]} 25... Rxb5 {[%clk 0:00:26.6]} 26. Qc4 {[%clk
0:00:15.2]} 26... a5 {[%clk 0:00:24.6]} 27. Rec1 {[%clk 0:00:07.9]} 27... Rc5
{[%clk 0:00:23.8]} 28. Qa6 {[%clk 0:00:08.5]} 28... Rxc1+ {[%clk 0:00:16.9]} 29.
Rxc1 {[%clk 0:00:08.1]} 29... Rc8 {[%clk 0:00:17.5]} 30. Rxc8+ {[%clk
0:00:05.4]} 30... Qxc8 {[%clk 0:00:17.4]} 31. Qxd6 {[%clk 0:00:03.6]} 31... Qc1+
{[%clk 0:00:15.2]} 32. Bf1 {[%clk 0:00:04.2]} 32... Bh3 {[%clk 0:00:13.5]} 33.
Qd8+ {[%clk 0:00:03.3]} 33... Kf7 {[%clk 0:00:11.7]} 0-1

[Event "*** Titled Tuesday Blitz"]
[Site "Chess.com"]
[Date "2020.04.21"]
[Round "8"]
[White "doons21"]
[Black "karinachess1"]
[Result "0-1"]
[WhiteElo "2602"]
[BlackElo "2482"]
[TimeControl "180+1"]
[EndTime "11:38:48 PDT"]
[Termination "karinachess1 won by resignation"]

1. e4 {[%clk 0:03:00.9]} 1... e5 {[%clk 0:02:58.9]} 2. Nf3 {[%clk 0:03:00.7]}
2... Nc6 {[%clk 0:02:58.5]} 3. Bb5 {[%clk 0:02:57]} 3... a6 {[%clk 0:02:51]} 4.
Ba4 {[%clk 0:02:57.4]} 4... Nf6 {[%clk 0:02:51.3]} 5. Qe2 {[%clk 0:02:57.5]}
5... b5 {[%clk 0:02:40]} 6. Bb3 {[%clk 0:02:56.9]} 6... Be7 {[%clk 0:02:40.4]}
7. c3 {[%clk 0:02:54.9]} 7... O-O {[%clk 0:02:38.1]} 8. O-O {[%clk 0:02:49.1]}
8... d5 {[%clk 0:02:27]} 9. exd5 {[%clk 0:02:34.6]} 9... Nxd5 {[%clk 0:02:27.9]}
10. Nxe5 {[%clk 0:02:34.9]} 10... Nf4 {[%clk 0:02:13.1]} 11. Qe4 {[%clk
0:02:25.8]} 11... Nxe5 {[%clk 0:02:11.1]} 12. Qxf4 {[%clk 0:02:09.2]} 12... Nd3
{[%clk 0:01:39.7]} 13. Qe4 {[%clk 0:01:56.7]} 13... Nxc1 {[%clk 0:00:57]} 14.
Rxc1 {[%clk 0:01:41]} 14... Rb8 {[%clk 0:00:53]} 15. Bc2 {[%clk 0:01:27.1]}
15... g6 {[%clk 0:00:52.5]} 16. d4 {[%clk 0:01:25]} 16... Bg5 {[%clk 0:00:39.6]}
17. Re1 {[%clk 0:01:12.2]} 17... Bf5 {[%clk 0:00:21.3]} 18. Qe2 {[%clk
0:01:07.7]} 18... Re8 {[%clk 0:00:21.7]} 19. Qf1 {[%clk 0:00:40.2]} 19... Bxc2
{[%clk 0:00:17.1]} 20. Na3 {[%clk 0:00:40.4]} 20... Rxe1 {[%clk 0:00:16.3]} 21.
Rxe1 {[%clk 0:00:39.4]} 21... Bf5 {[%clk 0:00:16.9]} 22. f4 {[%clk 0:00:39.7]}
22... Bf6 {[%clk 0:00:17]} 23. Qf3 {[%clk 0:00:39.3]} 23... Qd7 {[%clk 0:00:17]}
24. h3 {[%clk 0:00:39]} 24... Re8 {[%clk 0:00:17]} 25. Rxe8+ {[%clk 0:00:39.2]}
25... Qxe8 {[%clk 0:00:17.9]} 26. g4 {[%clk 0:00:40]} 26... Be4 {[%clk
0:00:18.3]} 27. Qe3 {[%clk 0:00:40.3]} 27... Bc6 {[%clk 0:00:18.6]} 28. Qxe8+
{[%clk 0:00:39.5]} 28... Bxe8 {[%clk 0:00:18.3]} 29. Nc2 {[%clk 0:00:40.4]}
29... Bc6 {[%clk 0:00:18]} 30. Nb4 {[%clk 0:00:40.4]} 30... Bb7 {[%clk
0:00:17.5]} 31. Nd3 {[%clk 0:00:40.6]} 31... Be7 {[%clk 0:00:17.3]} 32. Kf2
{[%clk 0:00:40.1]} 32... f6 {[%clk 0:00:17.7]} 33. Ke3 {[%clk 0:00:39]} 33...
Kf7 {[%clk 0:00:18.2]} 34. b3 {[%clk 0:00:39.4]} 34... Ke6 {[%clk 0:00:18.4]}
35. c4 {[%clk 0:00:39.9]} 35... bxc4 {[%clk 0:00:19.3]} 36. bxc4 {[%clk
0:00:40.6]} 36... c6 {[%clk 0:00:19.5]} 37. Nc1 {[%clk 0:00:36.3]} 37... a5
{[%clk 0:00:18.8]} 38. Ne2 {[%clk 0:00:36.1]} 38... Ba6 {[%clk 0:00:18.1]} 39.
Kd3 {[%clk 0:00:35.5]} 39... Bd6 {[%clk 0:00:17.6]} 40. Kc3 {[%clk 0:00:32.6]}
40... h5 {[%clk 0:00:17.4]} 41. f5+ {[%clk 0:00:30.2]} 41... Kf7 {[%clk
0:00:16.4]} 42. gxh5 {[%clk 0:00:31.1]} 42... gxh5 {[%clk 0:00:16.5]} 43. Ng1
{[%clk 0:00:28.6]} 43... Bc8 {[%clk 0:00:15.9]} 44. c5 {[%clk 0:00:23.5]} 44...
Bc7 {[%clk 0:00:15.6]} 0-1

[Event "*** Titled Tuesday Blitz"]
[Site "Chess.com"]
[Date "2020.04.21"]
[Round "8"]
[White "RovenVogel"]
[Black "bazar-wokzal"]
[Result "1-0"]
[WhiteElo "2695"]
[BlackElo "2531"]
[TimeControl "180+1"]
[EndTime "11:38:49 PDT"]
[Termination "RovenVogel won on time"]

1. d4 {[%clk 0:03:00.9]} 1... Nf6 {[%clk 0:02:59.1]} 2. c4 {[%clk 0:03:00.2]}
2... Nc6 {[%clk 0:02:59.2]} 3. Nf3 {[%clk 0:02:59.2]} 3... e6 {[%clk 0:02:59.4]}
4. g3 {[%clk 0:02:58.4]} 4... Bb4+ {[%clk 0:02:58.2]} 5. Bd2 {[%clk 0:02:57.9]}
5... a5 {[%clk 0:02:58.2]} 6. Bg2 {[%clk 0:02:56.8]} 6... d6 {[%clk 0:02:57.8]}
7. O-O {[%clk 0:02:55.2]} 7... e5 {[%clk 0:02:58.1]} 8. Bg5 {[%clk 0:02:50.1]}
8... exd4 {[%clk 0:02:57.4]} 9. Nxd4 {[%clk 0:02:49.1]} 9... Ne5 {[%clk
0:02:57.5]} 10. a3 {[%clk 0:02:47.5]} 10... Bc5 {[%clk 0:02:57.1]} 11. Nc3
{[%clk 0:02:47.9]} 11... Neg4 {[%clk 0:02:55.6]} 12. Nd5 {[%clk 0:01:59.4]}
12... h6 {[%clk 0:02:51.6]} 13. Bxf6 {[%clk 0:01:57.3]} 13... Nxf6 {[%clk
0:02:50.8]} 14. b4 {[%clk 0:01:53.4]} 14... Ba7 {[%clk 0:02:29.6]} 15. e3 {[%clk
0:01:35]} 15... O-O {[%clk 0:02:21.9]} 16. Qc2 {[%clk 0:01:29.1]} 16... Nxd5
{[%clk 0:02:13]} 17. cxd5 {[%clk 0:01:21]} 17... Bxd4 {[%clk 0:02:11.2]} 18.
exd4 {[%clk 0:01:20.7]} 18... axb4 {[%clk 0:02:11.4]} 19. axb4 {[%clk
0:01:21.6]} 19... Rxa1 {[%clk 0:02:10.9]} 20. Rxa1 {[%clk 0:01:22.5]} 20... Bg4
{[%clk 0:02:02.1]} 21. h3 {[%clk 0:01:18.2]} 21... Bh5 {[%clk 0:02:00.7]} 22.
Rc1 {[%clk 0:01:16.6]} 22... Qf6 {[%clk 0:01:52.3]} 23. Qxc7 {[%clk 0:01:16.1]}
23... Qxd4 {[%clk 0:01:51.9]} 24. Qxd6 {[%clk 0:01:16.2]} 24... Ra8 {[%clk
0:01:29.5]} 25. Qc5 {[%clk 0:01:14.5]} 25... Qd2 {[%clk 0:01:22.2]} 26. Qc3
{[%clk 0:01:06.6]} 26... Qxc3 {[%clk 0:01:05.4]} 27. Rxc3 {[%clk 0:01:05.9]}
27... Ra1+ {[%clk 0:01:05.8]} 28. Kh2 {[%clk 0:01:05.9]} 28... Ra2 {[%clk
0:01:05.4]} 29. g4 {[%clk 0:01:04.4]} 29... Bg6 {[%clk 0:01:04.1]} 30. Kg3
{[%clk 0:01:04.6]} 30... Rb2 {[%clk 0:00:46]} 31. f4 {[%clk 0:01:04.2]} 31... f5
{[%clk 0:00:37.7]} 32. d6 {[%clk 0:00:58.1]} 32... Rd2 {[%clk 0:00:27.9]} 33.
Bxb7 {[%clk 0:00:53.3]} 33... Rxd6 {[%clk 0:00:26.3]} 34. Bf3 {[%clk 0:00:45.8]}
34... Rb6 {[%clk 0:00:21.4]} 35. Rc6 {[%clk 0:00:44.1]} 35... Rxb4 {[%clk
0:00:09.5]} 36. Rxg6 {[%clk 0:00:43.4]} 36... Kh7 {[%clk 0:00:02.8]} 37. Ra6
{[%clk 0:00:38.4]} 37... fxg4 {[%clk 0:00:02.8]} 38. hxg4 {[%clk 0:00:37.7]}
38... g5 {[%clk 0:00:02.8]} 39. Ra7+ {[%clk 0:00:34.5]} 39... Kh8 {[%clk
0:00:01.2]} 40. fxg5 {[%clk 0:00:34.1]} 1-0

[Event "*** Titled Tuesday Blitz"]
[Site "Chess.com"]
[Date "2020.04.21"]
[Round "8"]
[White "fancyknightmaneuvers"]
[Black "Nara_Kh"]
[Result "1-0"]
[WhiteElo "2585"]
[BlackElo "2359"]
[TimeControl "180+1"]
[EndTime "11:38:51 PDT"]
[Termination "fancyknightmaneuvers won by resignation"]

1. e4 {[%clk 0:03:00.8]} 1... c5 {[%clk 0:02:59.2]} 2. Nf3 {[%clk 0:03:00.2]}
2... d6 {[%clk 0:02:59]} 3. Bb5+ {[%clk 0:02:59.8]} 3... Nd7 {[%clk 0:02:58.2]}
4. O-O {[%clk 0:02:59.5]} 4... a6 {[%clk 0:02:56.3]} 5. Bd3 {[%clk 0:03:00]}
5... Ngf6 {[%clk 0:02:56.3]} 6. Re1 {[%clk 0:03:00.6]} 6... g6 {[%clk
0:02:56.5]} 7. c3 {[%clk 0:03:01.1]} 7... Bg7 {[%clk 0:02:55.9]} 8. Bc2 {[%clk
0:03:00.7]} 8... O-O {[%clk 0:02:56.1]} 9. d4 {[%clk 0:03:01.3]} 9... e5 {[%clk
0:02:55.9]} 10. dxe5 {[%clk 0:02:49.8]} 10... dxe5 {[%clk 0:02:47.7]} 11. a4
{[%clk 0:02:48.6]} 11... Qe7 {[%clk 0:02:33.7]} 12. Na3 {[%clk 0:02:48.5]} 12...
Nb8 {[%clk 0:02:27.3]} 13. Nc4 {[%clk 0:02:47.9]} 13... Nc6 {[%clk 0:02:23.1]}
14. Bg5 {[%clk 0:02:44]} 14... Bg4 {[%clk 0:02:18.5]} 15. h3 {[%clk 0:02:42.9]}
15... Bxf3 {[%clk 0:02:17.4]} 16. Qxf3 {[%clk 0:02:42.7]} 16... h6 {[%clk
0:02:13.9]} 17. Bh4 {[%clk 0:02:38.5]} 17... Rad8 {[%clk 0:02:13]} 18. a5 {[%clk
0:02:26.9]} 18... Qe6 {[%clk 0:01:32]} 19. Bb3 {[%clk 0:02:24]} 19... g5 {[%clk
0:01:21.2]} 20. Bg3 {[%clk 0:02:23.9]} 20... Rfe8 {[%clk 0:01:16.3]} 21. Ra3
{[%clk 0:02:23.1]} 21... Qe7 {[%clk 0:01:08.8]} 22. Nb6 {[%clk 0:02:16.4]} 22...
Qc7 {[%clk 0:00:45.4]} 23. Nc4 {[%clk 0:02:00.6]} 23... Rf8 {[%clk 0:00:36.6]}
24. Ba2 {[%clk 0:01:49.3]} 24... Nd7 {[%clk 0:00:36]} 25. Ne3 {[%clk 0:01:47.6]}
25... Qd6 {[%clk 0:00:33.5]} 26. Nf5 {[%clk 0:01:43.7]} 26... Qf6 {[%clk
0:00:33.3]} 27. Bd5 {[%clk 0:01:35.7]} 27... Rfe8 {[%clk 0:00:32.3]} 28. h4
{[%clk 0:01:34.6]} 28... Nf8 {[%clk 0:00:29.7]} 29. hxg5 {[%clk 0:01:34.3]}
29... hxg5 {[%clk 0:00:29.3]} 30. Rb1 {[%clk 0:01:14.6]} 30... Ng6 {[%clk
0:00:28]} 31. Ra4 {[%clk 0:01:10.2]} 31... Nf4 {[%clk 0:00:26.6]} 32. Bxf4
{[%clk 0:01:09.8]} 32... exf4 {[%clk 0:00:26.1]} 33. Bxc6 {[%clk 0:01:02]} 33...
Qxc6 {[%clk 0:00:25]} 34. Rc4 {[%clk 0:00:58.2]} 34... Re5 {[%clk 0:00:19.4]}
35. b4 {[%clk 0:00:55.6]} 35... Rde8 {[%clk 0:00:18.8]} 36. bxc5 {[%clk
0:00:44]} 36... Rxc5 {[%clk 0:00:18.8]} 37. Rxc5 {[%clk 0:00:41.6]} 37... Qxc5
{[%clk 0:00:19.7]} 38. Qg4 {[%clk 0:00:37.3]} 38... Rxe4 {[%clk 0:00:17.2]} 39.
Qxg5 {[%clk 0:00:35.4]} 39... Qxc3 {[%clk 0:00:17.5]} 40. Rxb7 {[%clk 0:00:26]}
40... Qe1+ {[%clk 0:00:15.8]} 41. Kh2 {[%clk 0:00:25.9]} 41... Qa1 {[%clk
0:00:15.5]} 42. Rb8+ {[%clk 0:00:23.8]} 42... Kh7 {[%clk 0:00:13.9]} 43. Qh5+
{[%clk 0:00:24.3]} 1-0

[Event "*** Titled Tuesday Blitz"]
[Site "Chess.com"]
[Date "2020.04.21"]
[Round "8"]
[White "DDTerziev04"]
[Black "kuba2006"]
[Result "0-1"]
[WhiteElo "2297"]
[BlackElo "2446"]
[TimeControl "180+1"]
[EndTime "11:38:51 PDT"]
[Termination "kuba2006 won on time"]

1. e4 {[%clk 0:03:00.9]} 1... e5 {[%clk 0:02:59.6]} 2. Nf3 {[%clk 0:03:00]} 2...
Nc6 {[%clk 0:02:59.8]} 3. Bc4 {[%clk 0:02:59.7]} 3... Nf6 {[%clk 0:02:58.4]} 4.
d3 {[%clk 0:02:59.2]} 4... Bc5 {[%clk 0:02:57.4]} 5. O-O {[%clk 0:02:58.1]} 5...
O-O {[%clk 0:02:55.4]} 6. Nbd2 {[%clk 0:02:57.4]} 6... d6 {[%clk 0:02:54.1]} 7.
c3 {[%clk 0:02:55.8]} 7... a6 {[%clk 0:02:53.4]} 8. Bb3 {[%clk 0:02:55.2]} 8...
Ba7 {[%clk 0:02:52.9]} 9. h3 {[%clk 0:02:55.1]} 9... Be6 {[%clk 0:02:44.1]} 10.
Re1 {[%clk 0:02:54.7]} 10... Qd7 {[%clk 0:02:40.5]} 11. Nf1 {[%clk 0:02:52.5]}
11... Na5 {[%clk 0:02:30.8]} 12. Bc2 {[%clk 0:02:47.4]} 12... b5 {[%clk
0:02:28.4]} 13. N3h2 {[%clk 0:02:44.2]} 13... Ne8 {[%clk 0:02:22.2]} 14. b4
{[%clk 0:02:28.7]} 14... Nc6 {[%clk 0:02:19.4]} 15. Bb3 {[%clk 0:02:27.4]} 15...
Kh8 {[%clk 0:02:17.1]} 16. Ng3 {[%clk 0:02:23.8]} 16... g6 {[%clk 0:02:00.2]}
17. Bh6 {[%clk 0:02:19.3]} 17... Ng7 {[%clk 0:01:59.7]} 18. Bxg7+ {[%clk
0:02:06.4]} 18... Kxg7 {[%clk 0:01:59]} 19. Ng4 {[%clk 0:01:39.7]} 19... f5
{[%clk 0:01:52]} 20. exf5 {[%clk 0:01:37]} 20... gxf5 {[%clk 0:01:33.7]} 21. Nh2
{[%clk 0:01:34.2]} 21... Kh8 {[%clk 0:01:30.2]} 22. Qh5 {[%clk 0:01:13.4]} 22...
Rg8 {[%clk 0:01:10.8]} 23. Qh4 {[%clk 0:00:58.2]} 23... Bxb3 {[%clk 0:00:57.7]}
24. axb3 {[%clk 0:00:56.2]} 24... Qg7 {[%clk 0:00:55.2]} 25. Rxa6 {[%clk
0:00:15.8]} 25... Bxf2+ {[%clk 0:00:54.1]} 26. Kxf2 {[%clk 0:00:15.7]} 26...
Rxa6 {[%clk 0:00:53.6]} 27. Re2 {[%clk 0:00:10.1]} 27... f4 {[%clk 0:00:50.9]}
28. Nf5 {[%clk 0:00:08.8]} 28... Qxg2+ {[%clk 0:00:49.6]} 29. Ke1 {[%clk
0:00:07.5]} 29... Qg1+ {[%clk 0:00:39.7]} 30. Nf1 {[%clk 0:00:06]} 30... Ra1+
{[%clk 0:00:38.4]} 31. Kd2 {[%clk 0:00:06.1]} 31... Ra2+ {[%clk 0:00:35.9]} 32.
Ke1 {[%clk 0:00:06]} 32... Rxe2+ {[%clk 0:00:35.5]} 33. Kxe2 {[%clk 0:00:06.9]}
33... Rg2+ {[%clk 0:00:35.3]} 34. Ke1 {[%clk 0:00:07]} 34... Rg6 {[%clk
0:00:23.3]} 35. c4 {[%clk 0:00:01.5]} 35... f3 {[%clk 0:00:17.1]} 36. cxb5
{[%clk 0:00:01.3]} 36... Qg2 {[%clk 0:00:15.5]} 0-1

[Event "*** Titled Tuesday Blitz"]
[Site "Chess.com"]
[Date "2020.04.21"]
[Round "8"]
[White "RubensCezila"]
[Black "fidezivkovic"]
[Result "1-0"]
[WhiteElo "2426"]
[BlackElo "2282"]
[TimeControl "180+1"]
[EndTime "11:38:51 PDT"]
[Termination "RubensCezila won on time"]

1. c4 {[%clk 0:03:00.9]} 1... e5 {[%clk 0:02:58.9]} 2. Nc3 {[%clk 0:03:00.8]}
2... Nf6 {[%clk 0:02:57.8]} 3. Nf3 {[%clk 0:02:57.9]} 3... Nc6 {[%clk 0:02:57]}
4. d3 {[%clk 0:02:57]} 4... Bb4 {[%clk 0:02:55]} 5. Bd2 {[%clk 0:02:56.4]} 5...
O-O {[%clk 0:02:53.7]} 6. e4 {[%clk 0:02:52.5]} 6... d6 {[%clk 0:02:50.4]} 7. h3
{[%clk 0:02:50.6]} 7... a5 {[%clk 0:02:45.9]} 8. Be2 {[%clk 0:02:50.4]} 8... h6
{[%clk 0:02:43.6]} 9. O-O {[%clk 0:02:50.3]} 9... Re8 {[%clk 0:02:41.8]} 10. Rc1
{[%clk 0:02:48.5]} 10... Nh7 {[%clk 0:02:32.4]} 11. a3 {[%clk 0:02:40.9]} 11...
Bc5 {[%clk 0:02:30.9]} 12. Nd5 {[%clk 0:02:40.8]} 12... f5 {[%clk 0:02:29.2]}
13. b4 {[%clk 0:02:38.7]} 13... axb4 {[%clk 0:02:28]} 14. axb4 {[%clk
0:02:37.3]} 14... Ba7 {[%clk 0:02:26.7]} 15. c5 {[%clk 0:02:37]} 15... f4 {[%clk
0:02:07.2]} 16. b5 {[%clk 0:02:17.9]} 16... Ne7 {[%clk 0:01:54.8]} 17. Nxc7
{[%clk 0:02:10.3]} 17... Qxc7 {[%clk 0:01:50.8]} 18. b6 {[%clk 0:02:10.1]} 18...
Bxb6 {[%clk 0:01:47.6]} 19. Qb3+ {[%clk 0:02:09.1]} 19... Kh8 {[%clk 0:01:35]}
20. cxb6 {[%clk 0:02:08.8]} 20... Qd8 {[%clk 0:01:28.3]} 21. d4 {[%clk
0:02:02.8]} 21... Nc6 {[%clk 0:01:19.7]} 22. Rxc6 {[%clk 0:01:35]} 22... bxc6
{[%clk 0:01:15.7]} 23. b7 {[%clk 0:01:35.9]} 23... Bxb7 {[%clk 0:01:10.9]} 24.
Qxb7 {[%clk 0:01:35.2]} 24... Nf6 {[%clk 0:01:00.3]} 25. Bd3 {[%clk 0:00:44]}
25... Ra3 {[%clk 0:00:47.6]} 26. Bb1 {[%clk 0:00:37.3]} 26... exd4 {[%clk
0:00:16.9]} 27. Qxc6 {[%clk 0:00:33.6]} 27... d3 {[%clk 0:00:12.6]} 28. Re1
{[%clk 0:00:29.5]} 28... Qb8 {[%clk 0:00:07.4]} 29. Qc1 {[%clk 0:00:26.9]} 29...
Rb3 {[%clk 0:00:05.4]} 30. Nd4 {[%clk 0:00:24.2]} 30... Rc8 {[%clk 0:00:01.4]}
31. Qd1 {[%clk 0:00:17.2]} 1-0